Cogmind - Beta 12 --- EXPLORER MODE // 2023.09.16 @ 02:18:05 Player: Olexender Result: Destroyed by G-67 Veteran with Field Laser Performance ------------- Evolutions (6) 3000 Regions Visited (15) 3000 Robots Destroyed (441) 2205 Value Destroyed (25789) 25789 Prototype IDs (20) 400 Alien Tech Used (0) 0 Bonus (12456) 12456 TOTAL SCORE: 46850 Bonus ------- High Alert Combat Kills 7344 Follower Combat Kills 1209 Entered Garrisons 1000 Used RIF Installer 3000 Friendly Fire -97 Cogmind --------- Core Integrity 0/1150 Matter 280/300 Energy 45/100 System Corruption 1% Temperature Cool (15) Movement Walking (120) Location -4/Extension Parts ------- > --- POWER (3) -------- (None) > --- PROPULSION (7) --- Flexi-carbon Leg > --- UTILITY (8) ------ Advanced Hacking Suite > --- WEAPON (2) ------- Plasma Rifle > --- INVENTORY (5) ---- Matter Compressor (250) Advanced Remote Datajack Peak State ------------ > --- POWER ------------ Antimatter Reactor Reinforced Antimatter Reactor Light Quantum Reactor > --- PROPULSION ------- Improved Titanium Leg Armored Leg Enhanced Flexi-carbon Leg Enhanced Flexi-carbon Leg Enhanced Flexi-carbon Leg Myomer Leg Myomer Leg > --- UTILITY ---------- Improved Cryofiber Web Advanced Heat Sink High-capacity Storage Unit Improved Medium Armor Plating Improved Remote Force Field Point Defense System Advanced Drone Bay > --- WEAPON ----------- Enhanced Coil Gun Linear Accelerator > --- INVENTORY -------- Reinforced Fission Core Improved Titanium Leg Advanced Power Amplifier Improved Cryofiber Web Advanced Heat Sink Energy Well Matter Compressor Gravity Neutralizer Energy Filter Improved Kinecellerator Force Booster Improved Medium Armor Plating Improved Remote Force Field Improved Remote Force Field Improved System Shield Enhanced Coil Gun Heavy Missile Launcher Fusion Bomb Launcher Advanced Remote Datajack Chainsword [Rating: 134] Favorites ----------- Power Neutrino Core Engine Cooled Ion Engine Power Core Neutrino Core Reactor Antimatter Reactor Propulsion Flexi-carbon Leg Treads Biometal Medium Treads Leg Flexi-carbon Leg Wheel Wheel Utility High-capacity Storage Unit Device Improved Cooling System Storage High-capacity Storage Unit Processor Advanced Targeting Computer Hackware Hacking Suite Protection Hardened Medium Armor Plating Weapon Heavy Linear Accelerator Energy Gun Pulse Rifle Energy Cannon Compact HERF Cannon Ballistic Gun Improved Assault Rifle Ballistic Cannon Heavy Linear Accelerator Launcher Heavy Missile Launcher Impact Weapon Heavy Hammer Slashing Weapon Chainsword Build | -11 -10 -9 -8 -7 -7 -7 -7 -6 -6 -5 -5 -5 -5 -4 -4 ------- Run | Jun Mat Mat Mat Fac Gar Fac Gar Fac Gar Fac Gar Fac Gar Fac Ext Slots Evolved 13 | . 1 2 2 2 . . . 2 . 2 . . . 2 . Power 2 | . 1 . . . . . . . . . . . . 1 . Propulsion 5 | . . 1 1 1 . . . 1 . 1 . . . . . Utility 6 | . . 1 1 1 . . . 1 . 1 . . . 1 . Weapon . | . . . . . . . . . . . . . . . . Parts Attached 437 | 7 10 21 18 7 24 19 21 42 36 . 39 111 18 20 44 Power 66 | 1 2 3 3 . 4 3 4 4 5 . 7 21 . 4 5 Engine 15 | 1 2 3 3 . 1 1 2 . . . 1 1 . . . Core 28 | . . . . . 2 2 . . . . 5 16 . . 3 Reactor 23 | . . . . . 1 . 2 4 5 . 1 4 . 4 2 Propulsion 131 | 2 3 7 4 1 4 6 6 14 13 . 17 36 8 4 6 Treads 1 | . . . . . . . . . 1 . . . . . . Leg 129 | 2 3 7 4 1 4 6 6 14 12 . 17 36 8 4 5 Wheel 1 | . . . . . . . . . . . . . . . 1 Hover . | . . . . . . . . . . . . . . . . Flight . | . . . . . . . . . . . . . . . . Utility 169 | 2 2 8 10 6 9 8 6 20 11 . 12 35 9 10 21 Device 113 | . . 3 4 4 7 4 2 17 9 . 9 23 6 8 17 Storage 9 | . 1 . 3 1 . . . 1 1 . 1 . . . 1 Processor 9 | 1 . 2 . . . . . . 1 . . 4 . 1 . Hackware 4 | . . . . . . . 1 . . . . 1 . . 2 Protection 34 | 1 1 3 3 1 2 4 3 2 . . 2 7 3 1 1 Artifact . | . . . . . . . . . . . . . . . . Weapon 71 | 2 3 3 1 . 7 2 5 4 7 . 3 19 1 2 12 Energy Gun 20 | 1 2 1 . . 3 2 2 3 3 . . 1 . . 2 Energy Cannon 4 | . . . . . . . . 1 1 . 1 . . . 1 Ballistic Gun 19 | 1 1 2 1 . 3 . 2 . . . . 6 . 1 2 Ballistic Cannon 16 | . . . . . 1 . 1 . 3 . 2 6 1 1 1 Launcher 2 | . . . . . . . . . . . . . . . 2 Special Weapon . | . . . . . . . . . . . . . . . . Impact Weapon 2 | . . . . . . . . . . . . . . . 2 Slashing Weapon 8 | . . . . . . . . . . . . 6 . . 2 Piercing Weapon . | . . . . . . . . . . . . . . . . Special Melee Weapon . | . . . . . . . . . . . . . . . . Unidentified Prototypes 9 | . . 1 1 . . . . 1 1 . . 5 . . . Parts Lost 114 | . . . . . 5 1 3 5 9 . 11 30 4 4 42 Power 11 | . . . . . . 1 . 1 . . 1 5 . . 3 Propulsion 39 | . . . . . 2 . . 2 5 . 7 12 . . 11 Utility 48 | . . . . . 2 . 2 2 4 . 2 13 3 3 17 Weapon 16 | . . . . . 1 . 1 . . . 1 . 1 1 11 Highest Loss Streak 25 | . . . . . 1 1 1 2 4 . 4 12 2 2 25 To Critical Strikes 4 | . . . . . . . . . 1 . . 2 . . 1 Average Slot Usage (%) 92 | . 98 98 98 94 95 97 99 97 93 88 92 85 90 94 58 Engine 5 | . 24 20 16 14 4 3 10 1 . . . . . . . Core 3 | . . . . . 3 6 . . . . 8 7 5 . . Reactor 4 | . . . . . 5 3 2 10 11 11 1 3 5 14 7 Leg 32 | . 25 30 32 34 32 34 35 35 32 33 36 32 37 35 17 Device 16 | . . 2 14 20 17 19 14 23 22 22 24 18 13 20 14 Storage 5 | . . 10 8 7 7 7 7 6 6 5 5 5 5 5 3 Processor 2 | . 11 6 . . . . . . 5 5 1 4 5 5 . Protection 6 | . 11 9 8 2 9 6 8 5 . . 4 4 8 8 2 Energy Gun 4 | . 11 10 8 7 6 7 7 5 4 5 . . . . . Ballistic Gun 3 | . 12 10 7 7 7 7 5 . . . . . . . 2 Ballistic Cannon 2 | . . . . . . . 1 6 5 5 5 4 5 5 3 Naked Turns 69 | . . . . . . . . . . . . . . . 69 Heaviest Build 153 | 10 24 38 61 75 94 85 97 109 104 91 117 120 121 151 153 Greatest Support 172 | 20 26 51 77 82 95 95 108 128 124 124 151 172 172 172 170 Greatest Overweight (x) 29 | . . . . . 1 . . 1 2 . 1 1 . . 29 Average Overweight (x) . | . . . . . . . . . . . . . . . . Largest Inventory Capacity 30 | 5 10 10 20 20 20 20 20 20 30 20 20 20 20 20 20 Average Capacity 17 | 5 5 10 15 16 20 20 20 20 20 20 20 20 20 20 13 Most Carried 20 | 5 6 10 15 16 20 20 20 20 20 20 20 20 20 20 20 Average Carried 15 | 1 2 8 11 14 17 19 18 17 18 20 18 18 18 17 11 Final Capacity 20 | 5 10 10 15 20 20 20 20 20 20 20 20 20 20 20 5 Final Carried 20 | 2 6 8 14 15 17 19 19 20 20 20 20 20 17 20 2 Class Distribution -------------------- 79% | Hacker-Mutant 20% | Scavenger-Mutant Dominant Class ---------------- Hacker-Mutant | -10/Materials Hacker-Mutant | -9/Materials Hacker-Mutant | -8/Materials Hacker-Mutant | -7/Factory Hacker-Mutant | -7/Garrison Hacker-Mutant | -7/Factory Hacker-Mutant | -7/Garrison Hacker-Mutant | -6/Factory Hacker-Mutant | -6/Garrison Hacker-Mutant | -5/Factory Scavenger-Mutant | -5/Garrison Hacker-Mutant | -5/Factory Hacker-Mutant | -5/Garrison Scavenger-Mutant | -4/Factory Hacker-Mutant | -4/Extension Resources | -11 -10 -9 -8 -7 -7 -7 -7 -6 -6 -5 -5 -5 -5 -4 -4 ----------- Run | Jun Mat Mat Mat Fac Gar Fac Gar Fac Gar Fac Gar Fac Gar Fac Ext Matter Collected 14297 | 185 206 654 523 10 755 437 626 1194 1178 . 1559 3408 1875 703 984 Remotely . | . . . . . . . . . . . . . . . . Salvage Created 17841 | . 270 903 1459 85 1294 1118 1362 1326 1667 . 1553 4125 1557 605 517 Parts 857 | . 23 67 85 4 56 52 82 62 85 . 68 162 70 18 23 Haulers Intercepted 5 | . . . . . 1 1 . . 1 . . 2 . . . Recyclers Shooed 4 | . . . . . . . . 2 . . . 1 . . 1 Parts Field Recycled . | . . . . . . . . . . . . . . . . Retrieved Matter . | . . . . . . . . . . . . . . . . Parts Self-Destructed . | . . . . . . . . . . . . . . . . Prevented . | . . . . . . . . . . . . . . . . Kills | -11 -10 -9 -8 -7 -7 -7 -7 -6 -6 -5 -5 -5 -5 -4 -4 ------- Run | Jun Mat Mat Mat Fac Gar Fac Gar Fac Gar Fac Gar Fac Gar Fac Ext Combat Hostiles Destroyed 388 | . 6 18 32 2 28 15 35 27 34 . 39 88 42 11 11 Melee 14 | . . . . . . . . . 1 . . 12 . . 1 Guns 172 | . 6 18 32 2 28 15 35 11 10 . 2 6 . 3 4 Cannons 197 | . . . . . . . . 16 23 . 37 66 42 8 5 AOE 4 | . . . . . . . . . . . . 3 . . 1 Classes Destroyed 21 | . 3 4 1 . 4 1 . 3 3 . . 1 . . 1 Worker 6 | . . . . . . 2 . . . . . 2 . . 2 Builder 8 | . . 1 1 . . 1 . . . . . 4 . . 1 Tunneler 3 | . . 1 . . . . . . . . . 1 . . 1 Hauler 5 | . . . . . 1 1 . . 1 . . 2 . . . Recycler 11 | . . . 2 . . 3 . 1 . . . 5 . . . Mechanic 2 | . . . . . . . . . . . . 2 . . . Operator 7 | . . 2 4 . . . . . . . . 1 . . . Drone 1 | . . . . . . . . . . . . . . . 1 Watcher 30 | . 3 5 2 . 1 2 2 3 . . 1 7 . 2 2 Swarmer 73 | . 2 3 9 . 13 4 22 1 8 . 7 4 . . . Cutter 3 | . . . . . . . . . 2 . 1 . . . . Saboteur 2 | . . . . . . . . . 1 . . 1 . . . Grunt 160 | . 4 6 13 2 6 5 7 16 6 . 23 45 21 4 2 Brawler 7 | . . . . . . . . 2 . . . 1 3 1 . Duelist 11 | . . . . . . . . 2 . . . 8 1 . . Protector 4 | . . . . . . . . 1 . . . 2 . 1 . Sentry 60 | . . 9 10 . 4 3 2 2 8 . 4 7 7 . 4 Specialist 3 | . . . . . 1 . 1 . . . 1 . . . . Hunter 21 | . . . . . 1 1 . 1 . . 2 10 . 4 2 Programmer 35 | . . . . . 3 2 3 2 7 . . 10 7 1 . Behemoth 8 | . . . . . . . . . 2 . 1 . 3 . 2 Best Kill Streak 15 | . 2 4 6 2 9 5 15 4 8 . 7 10 6 4 6 Combat Bots Only 15 | . 2 3 5 2 9 3 15 4 8 . 7 8 6 4 2 Max Kills in Single Turn 4 | . 1 2 2 1 1 2 2 1 1 . 1 4 1 1 2 Gunslinging 1 | . . 1 1 . . 1 1 . . . . . . . . Exploded 1 | . . . . . . . . . . . . 1 . . 1 Melee 1 | . . . . . . . . . 1 . . 1 . . 1 Uniques/NPCs Destroyed . | . . . . . . . . . . . . . . . . Combat | -11 -10 -9 -8 -7 -7 -7 -7 -6 -6 -5 -5 -5 -5 -4 -4 -------- Run | Jun Mat Mat Mat Fac Gar Fac Gar Fac Gar Fac Gar Fac Gar Fac Ext Damage Taken 23809 | . 135 648 982 34 1594 797 1454 1650 1709 . 3026 4852 1658 917 4353 Core 2879 | . 38 52 83 . 147 46 137 188 235 . 178 401 224 121 1029 Absorbed by Shields 3477 | . . . . 13 295 . . 182 74 . 211 1822 125 242 513 Regen/Repaired (Parts) 1447 | . . 48 173 122 . 355 . 295 . . . 454 . . . Core Remaining (%) 68 | 100 84 87 84 . . . 52 . 50 . . . 19 . . Volleys Fired 1323 | . 24 70 109 5 114 57 125 90 117 . 140 225 137 43 67 Largest 2 | . 2 2 2 2 2 2 2 2 2 . 2 2 1 2 2 Hottest 179 | . 70 86 86 86 123 121 153 153 160 . 160 83 83 96 179 Shots Fired 2106 | . 47 123 213 10 229 110 245 164 224 . 176 252 135 52 126 Gun 1254 | . 47 123 213 10 229 110 238 74 73 . 28 52 . 8 49 Cannon 850 | . . . . . . . 7 90 151 . 148 200 135 44 75 Launcher 2 | . . . . . . . . . . . . . . . 2 Special . | . . . . . . . . . . . . . . . . Kinetic 1390 | . 24 62 109 5 116 58 125 90 109 . 140 252 135 52 113 Thermal 664 | . 23 61 104 5 113 52 120 74 73 . 28 . . . 11 Explosive 2 | . . . . . . . . . . . . . . . 2 Electromagnetic 50 | . . . . . . . . . 42 . 8 . . . . Robot Hit Streak 54 | . 20 28 36 32 34 17 22 28 31 . 54 18 28 16 34 Robot Miss Streak 4 | . 4 3 4 1 1 2 3 3 2 . 2 4 2 2 2 Penetration Max 1 | . . . . . 1 1 1 . . . . 1 1 1 1 Secondary Targets 26 | . 2 3 5 . 6 2 7 . . . . 1 . . . Max Gunslinging Chain 1 | . 1 1 1 . 1 1 1 . . . . 1 . . . Shots Hit Robots 1656 | . 37 99 178 9 168 89 142 132 144 . 135 265 110 44 104 Core Hits 700 | . 15 39 75 4 65 38 69 62 58 . 55 127 41 19 33 Critical Kills 6 | . . . . . 1 1 . 2 . . . . . 1 1 Critical Parts Destroyed 9 | . . . 1 . 2 1 . 4 . . . . . . 1 Critical Strikes 126 | . 2 6 9 1 5 5 5 15 14 . 11 24 10 9 10 Burn 34 | . 2 6 8 1 2 3 5 . 7 . . . . . . Destroy 16 | . . . 1 . 3 2 . 6 . . . 1 . 1 2 Blast 68 | . . . . . . . . 9 6 . 11 17 10 8 7 Corrupt 1 | . . . . . . . . . 1 . . . . . . Smash 1 | . . . . . . . . . . . . . . . 1 Sever 6 | . . . . . . . . . . . . 6 . . . Melee Attacks 65 | . . . . . . . . . . . . 63 . . 2 Thermal 10 | . . . . . . . . . . . . 10 . . . Impact 1 | . . . . . . . . . . . . . . . 1 Slashing 54 | . . . . . . . . . . . . 53 . . 1 Piercing . | . . . . . . . . . . . . . . . . Sneak Attacks . | . . . . . . . . . . . . . . . . Combat Hostiles . | . . . . . . . . . . . . . . . . Follow-up Attacks 5 | . . . . . . . . . . . . 5 . . . Damage Inflicted 62431 | . 449 1518 2891 141 3378 2292 3402 4386 4545 . 6037 17200 9674 2545 3973 Guns 20123 | . 449 1518 2891 141 3378 2210 3402 1715 1345 . 689 965 . 242 1178 Cannons 38225 | . . . . . . . . 2641 3200 . 5346 12726 9674 2303 2335 Explosions 2032 | . . . . . . . . . . . 2 1645 . . 385 Melee 1913 | . . . . . . . . . . . . 1842 . . 71 Ramming 138 | . . . . . . 82 . 30 . . . 22 . . 4 Kinetic 46851 | . 212 752 1356 55 1690 1228 2010 2641 2567 . 5141 13691 9674 2545 3289 Thermal 11911 | . 237 766 1535 86 1688 982 1392 1715 1345 . 689 1252 . . 224 Explosive 780 | . . . . . . . . . . . 2 393 . . 385 Electromagnetic 838 | . . . . . . . . . 633 . 205 . . . . Impact 37 | . . . . . . . . . . . . . . . 37 Slashing 1876 | . . . . . . . . . . . . 1842 . . 34 Piercing . | . . . . . . . . . . . . . . . . Highest Corruption 8 | . 1 1 . . 2 3 4 1 2 . . 8 4 6 1 Average Corruption 2 | . 1 1 . . 2 2 3 1 1 . . 4 2 3 1 Corruption Purged 15 | . . . . . . . . . . . . 8 2 5 . Corruption Blocked . | . . . . . . . . . . . . . . . . Effects 226 | . 9 7 . . 32 25 29 6 21 . . 56 20 10 11 Message Errors 61 | . 2 2 . . 10 5 8 2 6 . . 18 3 2 3 Matter Fused 43 | . 1 2 . . 3 3 6 2 3 . . 12 6 3 2 Heat Flow Errors 26 | . 1 1 . . 3 4 4 . 3 . . 5 2 2 1 Energy Discharges 28 | . . 1 . . 6 4 2 1 3 . . 6 2 . 3 Parts Rejected 5 | . . . . . . 1 1 . . . . 2 1 . . Parts Fused 1 | . . . . . . 1 . . . . . . . . . Data Loss (minor) 32 | . 4 1 . . 4 2 5 1 2 . . 8 2 1 2 Data Loss (major) 9 | . . . . . 2 3 . . 1 . . 3 . . . Misfires 9 | . . . . . 2 1 1 . 2 . . 1 1 1 . Alerts 6 | . 1 . . . 1 1 . . 1 . . 1 . 1 . Weapon Failures 6 | . . . . . 1 . 2 . . . . . 3 . . Overload Shots . | . . . . . . . . . . . . . . . . Overflow Damage 3230 | . . . . . . 10 . 35 131 . 208 1908 812 93 33 Projectiles 2895 | . . . . . . . . 35 131 . 208 1583 812 93 33 Explosions 237 | . . . . . . . . . . . . 237 . . . Melee 98 | . . . . . . 10 . . . . . 88 . . . Knockbacks 178 | . . . . . . 1 . 26 11 . 27 71 23 14 5 Impact 2 | . . . . . . 1 . 1 . . . . . . . Kinetic 160 | . . . . . . . . 23 10 . 25 63 20 14 5 Secondary 16 | . . . . . . . . 2 1 . 2 8 3 . . Self-Inflicted Damage 362 | . . . . . . . . . . . . 321 39 . 2 Shots 8 | . . . . . . . . . . . . 7 1 . . Rammed 1 | . . . . . . . . . . . . . . . 1 Targets Rammed 7 | . . . . . . 3 . 1 . . . 2 . . 1 Kicked 6 | . . . . . . 3 . 1 . . . 2 . . . Crushed . | . . . . . . . . . . . . . . . . Highest Temperature 440 | . 284 410 209 . 242 257 177 342 416 . 318 396 218 440 256 Average Temperature 99 | . 100 116 25 . 39 43 29 110 125 . 146 152 27 143 93 Received Heat Transfer 8870 | . 105 438 738 30 611 279 366 910 508 . 1470 1526 834 242 813 Effects 35 | . 1 8 . . . . . . 5 . 2 12 . 7 . Shutdowns 10 | . . 2 . . . . . . 3 . . 2 . 3 . Energy Bleed 6 | . 1 2 . . . . . . . . . 1 . 2 . Interference 12 | . . 4 . . . . . . . . 1 7 . . . Short Circuit 4 | . . . . . . . . . . . 1 2 . 1 . Damage (minor) 3 | . . . . . . . . . 2 . . . . 1 . Siege Activations . | . . . . . . . . . . . . . . . . Robots Corrupted . | . . . . . . . . . . . . . . . . Combat Hostiles . | . . . . . . . . . . . . . . . . Parts Fried 4 | . . 2 . . . . . . 2 . . . . . . Impact Corruptions 6 | . . . . . . 2 . 1 . . . 2 1 . . Robots Melted . | . . . . . . . . . . . . . . . . Combat Hostiles . | . . . . . . . . . . . . . . . . Parts Melted 31 | . . 4 2 1 4 3 4 . 9 . . 3 . . 1 Heat Transferred 23366 | . 851 2257 3959 259 3200 1876 2893 2618 3238 . 791 1050 . . 374 Parts Sabotaged 18 | . . . . . . . . 2 9 . . 7 . . . Parts Stolen . | . . . . . . . . . . . . . . . . Parts Stripped . | . . . . . . . . . . . . . . . . Power Chain Reactions . | . . . . . . . . . . . . . . . . Missiles Intercepted . | . . . . . . . . . . . . . . . . Alert | -11 -10 -9 -8 -7 -7 -7 -7 -6 -6 -5 -5 -5 -5 -4 -4 ------- Run | Jun Mat Mat Mat Fac Gar Fac Gar Fac Gar Fac Gar Fac Gar Fac Ext Peak Influence 2076 | . 88 253 378 46 1595 768 1461 891 1519 592 2076 1307 2015 909 404 Initial 809 | . . 1 29 29 24 621 9 569 302 592 319 809 419 785 157 Average 696 | . 26 85 162 18 853 410 813 621 1000 592 1254 942 1238 676 110 Maximum Alert Level 5 | . . 1 1 . 4 3 4 3 4 2 5 4 5 3 2 Low Security (%) 23 | 100 100 84 67 100 7 20 15 . . . . . . . 70 Level 1 8 | . . 15 32 . 3 30 1 . 4 . 3 . . 7 28 Level 2 18 | . . . . . 28 37 18 71 21 100 17 2 21 48 . Level 3 29 | . . . . . 29 11 34 28 39 . 21 81 17 43 . Level 4 15 | . . . . . 30 . 29 . 34 . 26 16 33 . . Level 5 4 | . . . . . . . . . . . 31 . 27 . . High Security . | . . . . . . . . . . . . . . . . Max Security . | . . . . . . . . . . . . . . . . Squads Dispatched 60 | . . 2 3 4 . 8 . 13 . . . 24 . 4 2 Investigation 24 | . . . . 3 . 4 . 4 . . . 10 . 2 1 Extermination 10 | . . . . 1 . 2 . 2 . . . 4 . 1 . Reinforcement 11 | . . 2 3 . . 2 . 2 . . . 1 . . 1 Assault 12 | . . . . . . . . 2 . . . 9 . 1 . Garrison 3 | . . . . . . . . 3 . . . . . . . Intercept . | . . . . . . . . . . . . . . . . Searches Triggered . | . . . . . . . . . . . . . . . . Construction Impeded 1 | . . . . . . . . . . . . . . . 1 Haulers Reinforced 2 | . . . . . . 1 . 1 . . . . . . . Active Scanning Responses . | . . . . . . . . . . . . . . . . Cargo Convoy Interrupts . | . . . . . . . . . . . . . . . . Stealth | -11 -10 -9 -8 -7 -7 -7 -7 -6 -6 -5 -5 -5 -5 -4 -4 --------- Run | Jun Mat Mat Mat Fac Gar Fac Gar Fac Gar Fac Gar Fac Gar Fac Ext Distress Signals 13 | . . 1 5 . . 2 1 1 . . . 3 . . . Communications Jammed 1 | . . . . . . . . 1 . . . . . . . Distress Signals 1 | . . . . . . . . 1 . . . . . . . Times Spotted 532 | . 12 28 48 2 39 20 42 45 35 . 51 118 44 19 29 Peak Tracking Total 8 | . 3 5 5 2 5 3 8 7 4 . 7 8 6 5 6 Tactical Retreats 16 | . . 1 1 . . 1 1 1 . . 1 6 2 . 2 Traps | -11 -10 -9 -8 -7 -7 -7 -7 -6 -6 -5 -5 -5 -5 -4 -4 ------- Run | Jun Mat Mat Mat Fac Gar Fac Gar Fac Gar Fac Gar Fac Gar Fac Ext Traps Triggered 31 | . 3 1 . . 5 4 1 . 5 . 5 2 3 . 2 Indirectly . | . . . . . . . . . . . . . . . . Trap Hack Attempts . | . . . . . . . . . . . . . . . . Triggered . | . . . . . . . . . . . . . . . . Disarmed . | . . . . . . . . . . . . . . . . Reprogrammed 26 | . 6 6 6 . . . . . . . . 4 . 4 . Reused 3 | . . 1 . . . . . . . . . 2 . . . Traps Extracted . | . . . . . . . . . . . . . . . . Installed . | . . . . . . . . . . . . . . . . Triggered 3 | . . 1 . . . . . . . . . 2 . . . Machines | -11 -10 -9 -8 -7 -7 -7 -7 -6 -6 -5 -5 -5 -5 -4 -4 ---------- Run | Jun Mat Mat Mat Fac Gar Fac Gar Fac Gar Fac Gar Fac Gar Fac Ext Machines Disabled 114 | . . 1 . . 12 1 7 1 10 . 16 46 14 5 1 Max in Single Turn 18 | . . 1 . . 2 1 2 1 2 . 2 18 2 2 1 Garrison Access 1 | . . . . . . . . . . . . 1 . . . Garrison Relay 22 | . . . . . 4 . 4 . 5 . 4 . 5 . . Phase Generator 5 | . . . . . 1 . 1 . 1 . 1 . 1 . . Machines Repaired . | . . . . . . . . . . . . . . . . Machines Sabotaged . | . . . . . . . . . . . . . . . . Overloaded Fab Kills . | . . . . . . . . . . . . . . . . Hacking | -11 -10 -9 -8 -7 -7 -7 -7 -6 -6 -5 -5 -5 -5 -4 -4 --------- Run | Jun Mat Mat Mat Fac Gar Fac Gar Fac Gar Fac Gar Fac Gar Fac Ext Machines Accessed 107 | . 10 14 13 4 1 9 3 12 2 1 4 24 3 5 2 Terminals 61 | . 8 9 8 1 1 3 3 4 2 . 4 11 3 2 2 Fabricators 7 | . . . . . . 1 . 2 . . . 2 . 2 . Repair Stations 14 | . . 1 2 2 . 3 . 3 . . . 3 . . . Recycling Units 13 | . 2 2 2 . . . . 2 . . . 4 . 1 . Scanalyzers 6 | . . 2 1 . . 1 . . . . . 2 . . . Garrison Access 6 | . . . . 1 . 1 . 1 . 1 . 2 . . . Total Hacks 301 | . 37 42 51 15 1 23 7 23 2 1 8 57 4 21 9 Successful 206 | . 27 37 40 9 1 14 4 18 2 1 3 29 3 13 5 Failed 95 | . 10 5 11 6 . 9 3 5 . . 5 28 1 8 4 Catastrophic 6 | . 2 . . . . . . 1 . . . 2 . . 1 Database Lockouts . | . . . . . . . . . . . . . . . . Manual 84 | . 14 13 15 4 . 6 4 5 . . . 15 . 7 1 Terminals 194 | . 34 23 41 7 1 12 7 7 2 . 8 26 4 13 9 Fabricators 16 | . . . . . . 2 . 4 . . . 5 . 5 . Repair Stations 38 | . . 2 4 5 . 7 . 9 . . . 11 . . . Recycling Units 22 | . 3 3 2 . . . . 2 . . . 9 . 3 . Scanalyzers 23 | . . 14 4 . . 1 . . . . . 4 . . . Garrison Access 8 | . . . . 3 . 1 . 1 . 1 . 2 . . . Terminal Hacks 84 | . 16 10 22 3 1 2 3 2 2 . 3 8 3 5 4 Record 2 | . . . 1 . . . . . . . . . . . 1 Part Schematic 1 | . . . . . . . . . . . . . . 1 . Robot Schematic 1 | . . . . . . 1 . . . . . . . . . Robot Analysis 1 | . . . 1 . . . . . . . . . . . . Prototype ID Bank 6 | . . . 5 . . . . . . . . . . . 1 Open Door 2 | . . . . . . . . . . . . . 1 . 1 Open DSF 6 | . . . . . . . . 2 . . . 4 . . . Level Access Points 2 | . . . 1 . . . . . . . . . . 1 . Emergency Access Points 13 | . 2 2 3 1 . 1 1 . 1 . 1 . 1 . . Recycling Unit Index 3 | . 1 1 1 . . . . . . . . . . . . Unreport Threat 10 | . 4 1 2 1 . . . . . . . 1 . 1 . Reprogram Traps 6 | . 2 1 1 . . . . . . . . 1 . 1 . Dispatch Records 3 | . 1 1 1 . . . . . . . . . . . . Maintenance Status 1 | . . . 1 . . . . . . . . . . . . Surveillance Status 3 | . 1 1 1 . . . . . . . . . . . . Transport Status 2 | . 2 . . . . . . . . . . . . . . Investigation Status 2 | . 1 . 1 . . . . . . . . . . . . Assault Status 2 | . . 1 1 . . . . . . . . . . . . Recall Reinforcements 1 | . . . . . . . . . . . . . . . 1 Recall Assault 1 | . . . . . . . . . . . . 1 . . . Hauler Manifests 1 | . . . 1 . . . . . . . . . . . . Zone Layout 8 | . 2 2 1 1 . . . . . . . 1 . 1 . Garrison Registry 2 | . . . . . . . 1 . . . . . 1 . . Patrol Navigation 1 | . . . . . . . . . . . 1 . . . . Security Stations 4 | . . . . . 1 . 1 . 1 . 1 . . . . Fabricator Hacks 12 | . . . . . . 2 . 3 . . . 3 . 4 . Network Status 1 | . . . . . . . . . . . . . . 1 . Load Schematic 4 | . . . . . . 1 . 1 . . . 1 . 1 . Build 7 | . . . . . . 1 . 2 . . . 2 . 2 . Repair Station Hacks 29 | . . 2 4 4 . 6 . 8 . . . 5 . . . Scan Component 15 | . . 1 2 2 . 3 . 4 . . . 3 . . . Repair 14 | . . 1 2 2 . 3 . 4 . . . 2 . . . Recycling Unit Hacks 16 | . 3 3 2 . . . . 2 . . . 4 . 2 . Process 1 | . . . . . . . . . . . . 1 . . . Report Inventory 13 | . 3 2 2 . . . . 2 . . . 3 . 1 . Retrieve Components 2 | . . 1 . . . . . . . . . . . 1 . Scanalyzer 19 | . . 14 4 . . . . . . . . 1 . . . Insert Component 10 | . . 7 2 . . . . . . . . 1 . . . Analyze 9 | . . 7 2 . . . . . . . . . . . . Garrison Access Hacks 6 | . . . . 1 . 1 . 1 . 1 . 2 . . . Unlock Access 5 | . . . . 1 . 1 . 1 . 1 . 1 . . . Seal Access 1 | . . . . . . . . . . . . 1 . . . Unauthorized Hacks 40 | . 8 8 8 1 . 3 1 2 . . . 6 . 2 1 Terminals 40 | . 8 8 8 1 . 3 1 2 . . . 6 . 2 1 Botnet 40 | . 8 8 8 1 . 3 1 2 . . . 6 . 2 1 Fabricators . | . . . . . . . . . . . . . . . . Repair Stations . | . . . . . . . . . . . . . . . . Recycling Units . | . . . . . . . . . . . . . . . . Scanalyzers . | . . . . . . . . . . . . . . . . Garrison Access . | . . . . . . . . . . . . . . . . Data Cores Recovered 2 | . . 1 1 . . . . . . . . . . . . Used . | . . . . . . . . . . . . . . . . Hacking Detections 80 | . 8 11 7 3 1 8 2 8 2 1 3 19 1 4 2 Full Trace Events 27 | . 1 1 . 3 . 3 1 4 . . 1 10 1 2 . Feedback Events 3 | . 1 . . . . . . 1 . . . . 1 . . Corruption 3 | . 1 . . . . . . 1 . . . . 1 . . Feedback Blocked . | . . . . . . . . . . . . . . . . Robot Schematics Acquired 1 | . . . . . . 1 . . . . . . . . . Robots Built 6 | . . . . . . 2 . 2 . . . . . 2 . Authchips . | . . . . . . . . . . . . . . . . Time 267 | . . . . . . 58 . 116 . . . . . 93 . Total Robot Build Rating 26 | . . . . . . 6 . 6 . . . . . 14 . Part Schematics Acquired 10 | . . 7 2 . . . . . . . . . . 1 . Parts Built 6 | . . . . . . . . 2 . . . 2 . 2 . Authchips . | . . . . . . . . . . . . . . . . Time 242 | . . . . . . . . 47 . . . 131 . 64 . Total Part Build Rating 30 | . . . . . . . . 10 . . . 4 . 16 . Parts Repaired 13 | . . 1 2 2 . 3 . 3 . . . 2 . . . Time 534 | . . 32 89 51 . 128 . 175 . . . 59 . . . Parts Recycled . | . . . . . . . . . . . . . . . . Recycled Matter 308 | . . . . . . . . . . . . 308 . . . Retrieved Matter . | . . . . . . . . . . . . . . . . Retrieved Components 6 | . . 3 . . . . . . . . . . . 3 . Parts Scanalyzed 10 | . . 7 2 . . . . . . . . 1 . . . Part Schematics Acquired 9 | . . 7 2 . . . . . . . . . . . . Parts Damaged . | . . . . . . . . . . . . . . . . Bothacking | -11 -10 -9 -8 -7 -7 -7 -7 -6 -6 -5 -5 -5 -5 -4 -4 ------------ Run | Jun Mat Mat Mat Fac Gar Fac Gar Fac Gar Fac Gar Fac Gar Fac Ext Used RIF Installer 6 | . . . . . 1 . 1 . 1 . 1 . 2 . . Coupler Efficiency 2 | . . . . . . . . . . . 1 . 1 . . Zone Cloak 1 | . . . . . . . . . 1 . . . . . . Watcher Feeds 1 | . . . . . . . 1 . . . . . . . . Patrol Navigation 1 | . . . . . . . . . . . . . 1 . . Robots Hacked . | . . . . . . . . . . . . . . . . Non-combat . | . . . . . . . . . . . . . . . . Combat . | . . . . . . . . . . . . . . . . Robot Hacks Applied . | . . . . . . . . . . . . . . . . Relay Couplers Released 90 | . . . . . 17 . 16 . 22 . 15 . 20 . . Machine Destruction 90 | . . . . . 17 . 16 . 22 . 15 . 20 . . Fabnet Peak Effective % . | . . . . . . . . . . . . . . . . Robots Rewired . | . . . . . . . . . . . . . . . . Allies Hacked . | . . . . . . . . . . . . . . . . Hacks Repelled . | . . . . . . . . . . . . . . . . Allies | -11 -10 -9 -8 -7 -7 -7 -7 -6 -6 -5 -5 -5 -5 -4 -4 -------- Run | Jun Mat Mat Mat Fac Gar Fac Gar Fac Gar Fac Gar Fac Gar Fac Ext Total Allies 15 | . . . . . 2 2 2 2 . . 2 . 1 2 2 Largest Group 4 | . . . . . 2 2 2 2 . . 2 2 1 2 4 Highest-Rated Group 190 | . . . . . 190 38 157 151 . . 142 142 29 112 188 Highest-Rated Ally 95 | . . . . . 95 19 95 89 . . 80 80 29 56 56 Total Orders 6 | . . . . . . . . . . . . . . . 6 EXPLORE 6 | . . . . . . . . . . . . . . . 6 Ally Attacks 108 | . . . . . 12 . 6 22 . . 17 10 6 11 24 Total Damage 4808 | . . . . . 861 . 328 858 . . 543 274 252 476 1216 Kills 31 | . . . . . 6 . 3 7 . . 3 2 3 3 4 Allies Corrupted . | . . . . . . . . . . . . . . . . Allies Melted . | . . . . . . . . . . . . . . . . Intel | -11 -10 -9 -8 -7 -7 -7 -7 -6 -6 -5 -5 -5 -5 -4 -4 ------- Run | Jun Mat Mat Mat Fac Gar Fac Gar Fac Gar Fac Gar Fac Gar Fac Ext Robot Analysis Total 1 | . . . 1 . . . . . . . . . . . . Derelict Logs Recovered . | . . . . . . . . . . . . . . . . Drone Launches 6 | . . . . . . . . . . . . . . . 6 Drone Recoveries 6 | . . . . . . . . . . . . . . . 6 Exploration | -11 -10 -9 -8 -7 -7 -7 -7 -6 -6 -5 -5 -5 -5 -4 -4 ------------- Run | Jun Mat Mat Mat Fac Gar Fac Gar Fac Gar Fac Gar Fac Gar Fac Ext Turns Passed 22512 | 68 1188 1377 1786 273 2282 1631 1327 1468 1751 21 2157 3956 1368 911 948 Spaces Moved 13306 | 51 828 840 1017 150 1201 1114 792 808 994 17 1414 2114 805 584 577 Core 214 | 12 . . . . . . . . . . . . . . 202 Treads . | . . . . . . . . . . . . . . . . Legs 12980 | 39 828 840 1017 150 1201 1114 792 808 994 17 1414 2114 805 584 263 Wheels 112 | . . . . . . . . . . . . . . . 112 Hover . | . . . . . . . . . . . . . . . . Flight . | . . . . . . . . . . . . . . . . Fastest Speed 50 | 50 120 120 125 124 116 110 112 114 120 120 118 120 120 121 50 Average Speed 125 | 103 120 124 128 124 151 113 112 119 132 120 120 134 121 121 111 Slowest Speed 1500 | 120 120 130 130 125 194 116 118 190 260 120 190 190 122 122 1500 Overloaded Moves . | . . . . . . . . . . . . . . . . Propulsion Burnouts . | . . . . . . . . . . . . . . . . Robots Hopped . | . . . . . . . . . . . . . . . . Cave-ins Triggered . | . . . . . . . . . . . . . . . . Exploration Rate (%) 63 | 4 99 87 95 6 96 25 97 25 99 . 99 55 95 12 54 Regions Visited 15 Branch Regions 1 Pre-discovered Areas . | . . . . . . . . . . . . . . . . Known Exits Taken 10 | 1 1 1 1 1 . 1 . 1 . 1 . 1 . 1 . Unknown Exits Taken . | . . . . . . . . . . . . . . . . Scrap Searched . | . . . . . . . . . . . . . . . . Spaces Dug 8 | . . . . . . . 1 . 2 . 2 1 2 . . Terrain Destroyed 899 | . . . . . 160 1 80 11 87 . 176 229 102 29 24 Melee . | . . . . . . . . . . . . . . . . Projectile 158 | . . . . . 6 1 8 11 16 . 24 34 22 16 20 AOE 741 | . . . . . 154 . 72 . 71 . 152 195 80 13 4 Terrain Rammed . | . . . . . . . . . . . . . . . . Walls Destroyed . | . . . . . . . . . . . . . . . . Machines Disabled . | . . . . . . . . . . . . . . . . Actions | -11 -10 -9 -8 -7 -7 -7 -7 -6 -6 -5 -5 -5 -5 -4 -4 --------- Run | Jun Mat Mat Mat Fac Gar Fac Gar Fac Gar Fac Gar Fac Gar Fac Ext Total 16625 | 66 975 1049 1282 226 1431 1366 969 1139 1202 17 1651 2792 993 716 751 Wait 927 | . 102 75 109 54 36 141 9 159 6 . 10 149 9 45 23 Move 13295 | 50 827 839 1016 150 1200 1114 791 807 993 17 1413 2114 804 583 577 Hop . | . . . . . . . . . . . . . . . . Pick Up 307 | 9 8 23 20 7 20 18 12 26 20 . 26 71 13 18 16 Fast Attach 33 | . 4 . . 1 1 1 . 2 9 . 2 5 1 . 7 Attach 206 | 7 3 6 6 3 7 5 4 15 16 . 21 65 8 9 31 Detach 28 | . . . . . 2 . . . 2 . 4 19 . . 1 Swap 198 | . 3 15 12 3 16 13 17 25 11 . 16 41 9 11 6 Drop 198 | . 4 21 10 3 15 14 11 14 14 . 17 45 11 7 12 Fire 1323 | . 24 70 109 5 114 57 125 90 117 . 140 225 137 43 67 Melee 58 | . . . . . . . . . . . . 56 . . 2 Ram 1 | . . . . . . . . . . . . . . . 1 Kick 6 | . . . . . . 3 . 1 . . . 2 . . . Crush . | . . . . . . . . . . . . . . . . Escape Stasis 44 | . . . . . 20 . . . 14 . 2 . . . 8 Rewire 1 | . . . . . . . . . . . . . 1 . . Trap . | . . . . . . . . . . . . . . . . Miscellaneous . | . . . . . . . . . . . . . . . . Route ------- -11/Junkyard -10/Materials (discovered 4 exits: *Mat x3 / *Min) -9/Materials (discovered 3 exits: *Mat x2 / *Min) -8/Materials (discovered 3 exits: *Fac x3) -7/Factory -7/Garrison (discovered 3 exits: *Fac x3) -7/Factory (discovered 2 exits: *Low / Gar) -7/Garrison (discovered 3 exits: *Fac x3) -6/Factory (discovered 2 exits: *Fac / Gar) -6/Garrison (discovered 3 exits: *Fac x3) -5/Factory -5/Garrison (discovered 4 exits: *Fac x3 / *Fac) -5/Factory (discovered 4 exits: *Fac / *Upp x2 / Gar) -5/Garrison (discovered 3 exits: *Fac x3) -4/Factory (discovered 5 exits: Res x4 / *Ext) -4/Extension History --------- Turn | Location | Event 5 | -11/Junkyard | Identified exit to Materials 5 | -11/Junkyard | Discovered exit to Materials (range 15) 69 | -11/Junkyard | Entered Materials 69 | -10/Materials | Evolved 1 slot: Power x1 302 | -10/Materials | Build established: Hacker-Mutant 372 | -10/Materials | Identified exit to Materials 372 | -10/Materials | Discovered exit to Materials (range 13) 563 | -10/Materials | Identified exit to Mines 563 | -10/Materials | Discovered exit to Mines (range 15) 968 | -10/Materials | Discovered exit to Materials (range 16) 1165 | -10/Materials | Discovered exit to Materials (range 16) 1257 | -10/Materials | Entered another Materials area 1257 | -9/Materials | Evolved 2 slots: Propulsion x1, Utility x1 1702 | -9/Materials | Identified exit to Materials 1702 | -9/Materials | Discovered exit to Materials (range 7) 2008 | -9/Materials | Repaired Med. Armor Plating 2189 | -9/Materials | Discovered exit to Materials (range 13) 2472 | -9/Materials | Identified exit to Mines 2472 | -9/Materials | Discovered exit to Mines (range 13) 2634 | -9/Materials | Entered another Materials area 2634 | -8/Materials | Evolved 2 slots: Propulsion x1, Utility x1 3043 | -8/Materials | Identified exit to Factory 3043 | -8/Materials | Discovered exit to Factory (range 10) 3129 | -8/Materials | Found Powered Armor 3131 | -8/Materials | Found Powered Armor 3425 | -8/Materials | Repaired Titanium Leg 3765 | -8/Materials | Discovered exit to Factory (range 16) 3890 | -8/Materials | Repaired Imp. Assault Rifle 3974 | -8/Materials | Discovered exit to Factory (range 16) 4420 | -8/Materials | Entered Factory 4420 | -7/Factory | Evolved 2 slots: Propulsion x1, Utility x1 4491 | -7/Factory | Repaired Hrd. Medium Armor Plating 4545 | -7/Factory | Repaired Structural Scanner 4693 | -7/Factory | Identified exit to Garrison 4693 | -7/Factory | Entered Garrison 4743 | -7/Garrison | Triggered checkpoint 4790 | -7/Garrison | Garrison Relay disabled 4829 | -7/Garrison | Triggered checkpoint 4842 | -7/Garrison | Triggered checkpoint 4893 | -7/Garrison | Triggered checkpoint 4931 | -7/Garrison | Triggered checkpoint 4933 | -7/Garrison | Destroyed 9 combat bots 5159 | -7/Garrison | Identified exit to Factory 5159 | -7/Garrison | Discovered exit to Factory (range 14) 5222 | -7/Garrison | Triggered checkpoint 5291 | -7/Garrison | Garrison Relay disabled 5322 | -7/Garrison | Phase Generator disabled 5365 | -7/Garrison | Found embedded Infiltrators 5605 | -7/Garrison | Triggered checkpoint 5664 | -7/Garrison | Garrison Relay disabled 5723 | -7/Garrison | Discovered exit to Factory (range 13) 5756 | -7/Garrison | Learned Factory security intel 6262 | -7/Garrison | Discovered exit to Factory (range 14) 6383 | -7/Garrison | Triggered checkpoint 6395 | -7/Garrison | Triggered checkpoint 6538 | -7/Garrison | Garrison Relay disabled 6690 | -7/Garrison | Installed Relay Interface Framework 6975 | -7/Garrison | Entered Factory 7601 | -7/Factory | Identified exit to Lower Caves 7601 | -7/Factory | Discovered exit to Lower Caves (range 14) 7930 | -7/Factory | Repaired Hrd. Medium Armor Plating 8135 | -7/Factory | Repaired Myomer Leg 8204 | -7/Factory | Repaired Mic. Fission Core 8539 | -7/Factory | Fabricated W-25 Informer? 8606 | -7/Factory | Identified exit to Garrison 8606 | -7/Factory | Entered Garrison 8606 | -7/Garrison | Accompanied by 2 allies 8723 | -7/Garrison | Triggered checkpoint 8745 | -7/Garrison | Learned Factory security intel 8763 | -7/Garrison | Garrison Relay disabled 8900 | -7/Garrison | Destroyed 15 combat bots 8939 | -7/Garrison | Expanded RIF knowledge: Watcher Feeds 8982 | -7/Garrison | Identified exit to Factory 8982 | -7/Garrison | Discovered exit to Factory (range 11) 9019 | -7/Garrison | Discovered exit to Factory (range 55) 9019 | -7/Garrison | Discovered exit to Factory (range 23) 9019 | -7/Garrison | Discovered exit to Factory (range 32) 9082 | -7/Garrison | Garrison Relay disabled 9296 | -7/Garrison | Garrison Relay disabled 9440 | -7/Garrison | Triggered checkpoint 9524 | -7/Garrison | Found embedded Infiltrators 9789 | -7/Garrison | Phase Generator disabled 9933 | -7/Garrison | Entered Factory 9933 | -6/Factory | Accompanied by 2 allies 9933 | -6/Factory | Evolved 2 slots: Propulsion x1, Utility x1 10103 | -6/Factory | Repaired Hrd. Medium Armor Plating 10149 | -6/Factory | Repaired Matter Filter 10227 | -6/Factory | Build established: Scavenger-Mutant 10283 | -6/Factory | First assault squad dispatched 10414 | -6/Factory | Fabricated Launcher Loader? 10687 | -6/Factory | Identified exit to Factory 10687 | -6/Factory | Discovered exit to Factory (range 16) 10812 | -6/Factory | Repaired Adv. Reaction Control System 10821 | -6/Factory | Fabricated W-25 Informer? 10884 | -6/Factory | Build established: Hacker-Mutant 11064 | -6/Factory | Garrison activated, responded to threat 11396 | -6/Factory | Identified exit to Garrison 11401 | -6/Factory | Entered Garrison 11455 | -6/Garrison | Learned Factory security intel 11482 | -6/Garrison | Garrison Relay disabled 11542 | -6/Garrison | Triggered checkpoint 11606 | -6/Garrison | Spotted B-75 Beast 11627 | -6/Garrison | Destroyed B-75 Beast 11630 | -6/Garrison | Triggered checkpoint 11677 | -6/Garrison | Triggered checkpoint 11699 | -6/Garrison | Triggered checkpoint 11709 | -6/Garrison | Destroyed 8 combat bots 11823 | -6/Garrison | Found Antimissile System 11826 | -6/Garrison | Triggered checkpoint 11947 | -6/Garrison | Phase Generator disabled 12004 | -6/Garrison | Spotted Striker 12006 | -6/Garrison | Discovered exit to Factory (range 12) 12029 | -6/Garrison | Expanded RIF knowledge: Zone Cloak 12036 | -6/Garrison | Garrison Relay disabled 12043 | -6/Garrison | Triggered checkpoint 12254 | -6/Garrison | Spotted B-75 Beast 12323 | -6/Garrison | Destroyed B-75 Beast 12351 | -6/Garrison | Lost 4 parts (3n1u) 12516 | -6/Garrison | Discovered exit to Factory (range 13) 12664 | -6/Garrison | Triggered checkpoint 12684 | -6/Garrison | Garrison Relay disabled 12902 | -6/Garrison | Triggered checkpoint 12928 | -6/Garrison | Garrison Relay disabled 12953 | -6/Garrison | Garrison Relay disabled 12971 | -6/Garrison | Discovered exit to Factory (range 9) 13023 | -6/Garrison | Build established: Scavenger-Mutant 13152 | -6/Garrison | Entered Factory 13152 | -5/Factory | Evolved 2 slots: Propulsion x1, Utility x1 13173 | -5/Factory | Identified exit to Garrison 13173 | -5/Factory | Entered Garrison 13198 | -5/Garrison | Triggered checkpoint 13313 | -5/Garrison | Triggered checkpoint 13397 | -5/Garrison | Identified exit to Factory 13397 | -5/Garrison | Discovered exit to Factory (range 5) 13488 | -5/Garrison | Spotted B-75 Beast 13494 | -5/Garrison | Triggered checkpoint 13530 | -5/Garrison | Destroyed B-75 Beast 13588 | -5/Garrison | Build established: Hacker-Mutant 13604 | -5/Garrison | Triggered checkpoint 13607 | -5/Garrison | Triggered checkpoint 13672 | -5/Garrison | Destroyed 7 combat bots 13672 | -5/Garrison | Lost 4 parts (1p2n1u) 13750 | -5/Garrison | Triggered checkpoint 13810 | -5/Garrison | Identified exit to Factory 13810 | -5/Garrison | Discovered exit to Factory (range 13) 13824 | -5/Garrison | Triggered checkpoint 13847 | -5/Garrison | Garrison Relay disabled 13890 | -5/Garrison | Expanded RIF knowledge: Coupler Efficiency 13939 | -5/Garrison | Build established: Scavenger-Mutant 13992 | -5/Garrison | Discovered exit to Factory (range 8) 14005 | -5/Garrison | Triggered checkpoint 14078 | -5/Garrison | Garrison Relay disabled 14118 | -5/Garrison | Phase Generator disabled 14121 | -5/Garrison | Found embedded Infiltrators 14167 | -5/Garrison | Triggered checkpoint 14167 | -5/Garrison | Garrison Relay disabled 14491 | -5/Garrison | Garrison Relay disabled 14539 | -5/Garrison | Discovered exit to Factory (range 15) 14579 | -5/Garrison | Triggered checkpoint 14850 | -5/Garrison | Learned Factory security intel 15330 | -5/Garrison | Entered Factory 15330 | -5/Factory | Accompanied by 2 allies 15872 | -5/Factory | Build established: Hacker-Mutant 15930 | -5/Factory | First assault squad dispatched 16000 | -5/Factory | Identified exit to Upper Caves 16000 | -5/Factory | Discovered exit to Upper Caves (range 21) 16081 | -5/Factory | Destroyed 8 combat bots 16360 | -5/Factory | Fabricated Imp. Aluminum Leg (x2) 17193 | -5/Factory | Lost 12 parts (3p5n4u) 17424 | -5/Factory | Build established: Scavenger-Mutant 17464 | -5/Factory | Lost 4 parts (2n2u) 17761 | -5/Factory | Build established: Hacker-Mutant 17827 | -5/Factory | Discovered exit to Factory (range 16) 17859 | -5/Factory | Core integrity fell below 50% 18079 | -5/Factory | Repaired Flexi-carbon Leg 18114 | -5/Factory | Repaired Hvy. Linear Accelerator 18711 | -5/Factory | Discovered exit to Upper Caves (range 16) 19286 | -5/Factory | Identified exit to Garrison 19286 | -5/Factory | Entered Garrison 19286 | -5/Garrison | Spotted B-75 Beast 19328 | -5/Garrison | Destroyed B-75 Beast 19356 | -5/Garrison | Found Unknown Protection 19358 | -5/Garrison | Identified Hvy. Reflective Plating 19430 | -5/Garrison | Triggered checkpoint 19447 | -5/Garrison | Garrison Relay disabled 19481 | -5/Garrison | Garrison Relay disabled 19604 | -5/Garrison | Triggered checkpoint 19725 | -5/Garrison | Triggered checkpoint 19776 | -5/Garrison | Triggered checkpoint 19805 | -5/Garrison | Garrison Relay disabled 19821 | -5/Garrison | Phase Generator disabled 19842 | -5/Garrison | Expanded RIF knowledge: Patrol Navigation 19857 | -5/Garrison | Discovered exit to Factory (range 11) 19910 | -5/Garrison | Rescued a captive Derelict 20053 | -5/Garrison | Spotted B-75 Beast 20071 | -5/Garrison | Destroyed B-75 Beast 20091 | -5/Garrison | Garrison Relay disabled 20182 | -5/Garrison | Triggered checkpoint 20248 | -5/Garrison | Discovered exit to Factory (range 10) 20258 | -5/Garrison | Triggered checkpoint 20288 | -5/Garrison | Discovered exit to Factory (range 46) 20288 | -5/Garrison | Discovered exit to Factory (range 43) 20288 | -5/Garrison | Discovered exit to Factory (range 6) 20339 | -5/Garrison | Garrison Relay disabled 20470 | -5/Garrison | Expanded RIF knowledge: Coupler Efficiency 20490 | -5/Garrison | Triggered checkpoint 20492 | -5/Garrison | Spotted B-75 Beast 20529 | -5/Garrison | Destroyed B-75 Beast 20530 | -5/Garrison | Core integrity fell below 20% 20654 | -5/Garrison | Entered Factory 20654 | -4/Factory | Evolved 2 slots: Power x1, Utility x1 20904 | -4/Factory | First assault squad dispatched 20970 | -4/Factory | Build established: Scavenger-Mutant 20970 | -4/Factory | Found Fusion Bomb Launcher 21285 | -4/Factory | Identified exit to Research 21413 | -4/Factory | Fabricated H-77 Assassin? 21431 | -4/Factory | Fabricated Imp. Remote Force Field? 21544 | -4/Factory | Identified exit to Extension 21544 | -4/Factory | Discovered exit to Extension (range 15) 21565 | -4/Factory | Entered Extension 21565 | -4/Extension | Accompanied by 2 allies 21919 | -4/Extension | Build established: Hacker-Mutant 21919 | -4/Extension | Rescued a captive Derelict 21920 | -4/Extension | Rescued a captive Derelict 21941 | -4/Extension | Spotted B-86 Titan 21965 | -4/Extension | Spotted B-86 Titan 22077 | -4/Extension | Destroyed B-86 Titan 22108 | -4/Extension | Lost 25 parts (2p8n11u4w) 22143 | -4/Extension | Destroyed B-86 Titan 22151 | -4/Extension | Core integrity fell below 50% 22191 | -4/Extension | Lost 10 parts (1p2n3u4w) 22497 | -4/Extension | Core integrity fell below 20% 22513 | -4/Extension | Destroyed by G-67 Veteran with Field Laser Last Messages --------------- 22481_ Acquired 88 matter. 22486_ Critical hit (Burn: +50). 22488_ Energy Filter destroyed. 22491_ Wave Gun destroyed. 22492_ Cloaking Device destroyed. 22494_ Acquired 10 matter. 22495_ Adv. Reaction Control System destroyed. 22495_ Critical hit (Burn: +50). 22496_ Adv. Plasma Cannon destroyed. 22501_ Wheel destroyed. 22501_ Dropped Imp. Remote Shield. 22502_ Dropped Energy Well. 22503_ G-67 Veteran suffers critical hit (Smash). 22503_ G-67 Veteran destroyed. 22504_ Hvy. Hammer destroyed. 22505_ Acquired Flexi-carbon Leg. 22507_ Acquired Plasma Rifle. 22512_ G-67 Veteran destroyed. 22512_ R-10 Processor collects Energy Well. [Achievement: 40k Club] Map ----- +----------------------------------------------------+ | # #?# ##### #????????????????????????????????? | | # # #?# #???# #????????????????????????????????? | | ## ## ### ##??# ##???????????????????????????????? | | ## ## ## #?## ##???????????????????????????????? | | ## #?## ##???????????????????????????????? | | ######## #?## #????????????????????????????????? | | ?????#######??# #????????????????????????????????? | | ??????????????# #????????????????????????????????? | | ????????????### #????????????????????????????????? | | ??????????###T# #??##????????????????????????????? | | ??????????# #?# #????????????????????????????? | | ??????????# #%## #?????????????????????????????? | | ??????????### # #% #?????????????????????????????? | | ????????????### # #???????#?????????????????????? | | ?????????????## # #?????? #?????????????????????? | | ???????????#### # #?????? #?????????????????????? | | ??????????## ##%#% ###???? #?????????????????????? | | ??????????# !# #% % #???? #?????????????????????? | | ??????????# %#%#%######??w#?????????????????????? | | ?????????## ### ;##%## ### ###???????????????????? | | ?????????# # % %% "" ""#???????????????????? | | ?????????## # " " #???????????????????? | | ??????????# # % #???????????????????? | | ?????????## # % #???????????????????? | | ############# ! ######??????????????? | | !%@ R ????????? | | % R R!%[* ????????? | | !g= ????????? | | % % g ?????????? | | %t% ?????????? | | ############# % ##########??????????? | | ???????###?## % #???????????????????? | | ???????????## % #???????????????????? | | ???????????## #???????????????????? | | ????????????# #???????????????????? | | ????????????###### #"""#######???????????????????? | | ?????????????????###?????????????????????????????? | | ???????????????????#?????????????????????????????? | | | | | | | | | | | | | | | | | | | | | | | | | +----------------------------------------------------+ Best States ------------- Heat Dissipation 73 Energy Generation 64 Energy Capacity 760 Matter Stores 300 Matter Capacity 300 Sight Range 22 Robot Scan Range 16 Terrain Scan Density 10 ECM Strength 1 Jamming Range 12 Power Amplification 30 Additional Mass Support 12 Base Temperature (-) 200 Armor Coverage 625 Resistance: KI 35 Resistance: TH 60 Resistance: EX 35 Resistance: EM 35 Resistance: I 35 Resistance: S 35 Resistance: P 35 Point Defense Rating 400 Phase Shifting 10 Evasion (%) 61 Targeting Accuracy 8 Core Analysis 6 Matter Filtering 30 Energy Filtering 30 Kinecelleration 40 Salvage Targeting 3 Offensive Hacking 34 Defensive Hacking 12 Item Schematics ----------------- Imp. Aluminum Leg | -9/Materials | Scanalyzed Assault Rifle | -9/Materials | Scanalyzed Beam Rifle | -9/Materials | Scanalyzed Hrd. Light Armor Plating | -9/Materials | Scanalyzed Lrg. Storage Unit | -9/Materials | Scanalyzed Hcp. Matter Pod | -9/Materials | Scanalyzed Lrg. Battery | -9/Materials | Scanalyzed Hcp. Storage Unit | -8/Materials | Scanalyzed Pulse Rifle | -8/Materials | Scanalyzed Imp. Remote Force Field | -4/Factory | Hacked Robot Schematics ------------------ W-25 Informer | -7/Factory | Hacked Fabricated ------------ W-25 Informer | x2 | -7/Factory Launcher Loader | x2 | -6/Factory | Preloaded W-25 Informer | x2 | -6/Factory Imp. Aluminum Leg | x2 | -5/Factory H-77 Assassin | x2 | -4/Factory | Preloaded Imp. Remote Force Field | x2 | -4/Factory Alien Tech Used ----------------- None Achievements -------------- 40k Club Giant Slayer Sniper Challenges ------------ None Game ------ Seed PlasmaDisposableCannon Manual? 0 Play Time 06:30:15 Cumulative 163.3 hours Start 2023.08.20 @ 18:34:29 End 2023.09.16 @ 02:18:05 Sessions 13 Manual Loads 0 Difficulty Explorer Special Mode None Game No. 129 Rogue 0 Adventurer 102 Explorer 27 Win Type - Total 0 Types 0/0/0/0/0/0/0/0/0 Lore% 45 Gallery% 59 Achievement% 46 Wizard Run 0 Options --------- ASCII 0 Keyboard 0 Movement Mouse Keybinds 0 Fullscreen 1 Font 18/SmallcapsGlow Map View 112x50 Tactical HUD 1 Map Filters NONE Filters NONE Steam 1 RUN: 616a0a52-0f1e-4d1b-b989-70dc106a9b01